Cogmind - Beta 15 @@@ ROGUE MODE // 2025.10.11 @ 18:19:47 Player: NQH Result: Destroyed by S-10 Pest with Light Assault Rifle Performance ------------- Evolutions (1) 500 Regions Visited (3) 600 Robots Destroyed (0) 0 Value Destroyed (0) 0 Prototype IDs (0) 0 Alien Tech Used (0) 0 Bonus (200) 200 TOTAL SCORE: 1300 Bonus ------- Pacifist 200 Cogmind --------- Core Integrity 0/400 Matter 74/300 Energy 79/125 System Corruption 3% Temperature Cool (0) Movement Core (100) Ox1 Location -9/Storage Parts ------- > --- POWER (3) -------- Light Ion Engine > --- PROPULSION (2) --- (None) > --- UTILITY (2) ------ Power Shielding Power Shielding > --- WEAPON (2) ------- (None) > --- INVENTORY (5) ---- (None) Peak State ------------ > --- POWER ------------ (None) > --- PROPULSION ------- (None) > --- UTILITY ---------- Power Shielding Power Shielding > --- WEAPON ----------- Datajack > --- INVENTORY -------- (None) [Rating: 3] Favorites ----------- Power None Propulsion None Utility Power Shielding Protection Power Shielding Weapon Datajack Special Melee Weapon Datajack Build | -11 -10 -9 -9 ------- Run | Yrd Mat Mat Sto Slots Evolved 2 | . . 2 . Power 2 | . . 2 . Propulsion . | . . . . Utility . | . . . . Weapon . | . . . . Parts Attached 4 | . 2 . 2 Power 1 | . . . 1 Engine 1 | . . . 1 Core . | . . . . Reactor . | . . . . Propulsion . | . . . . Treads . | . . . . Leg . | . . . . Wheel . | . . . . Hover . | . . . . Flight . | . . . . Utility 2 | . 2 . . Device . | . . . . Storage . | . . . . Processor . | . . . . Hackware . | . . . . Protection 2 | . 2 . . Artifact . | . . . . Weapon 1 | . . . 1 Energy Gun . | . . . . Energy Cannon . | . . . . Ballistic Gun . | . . . . Ballistic Cannon . | . . . . Launcher . | . . . . Special Weapon . | . . . . Impact Weapon . | . . . . Slashing Weapon . | . . . . Piercing Weapon . | . . . . Special Melee Weapon 1 | . . . 1 Unidentified Prototypes . | . . . . Parts Lost 1 | . . . 1 Power . | . . . . Propulsion . | . . . . Utility . | . . . . Weapon 1 | . . . 1 Highest Loss Streak 1 | . . . 1 To Critical Strikes . | . . . . Average Backups . | . . . . Power . | . . . . Propulsion . | . . . . Utility . | . . . . Weapon . | . . . . Tool/Special . | . . . . Unused Backups . | . . . . Power . | . . . . Propulsion . | . . . . Utility . | . . . . Weapon . | . . . . Tool/Special . | . . . . Average Slot Usage (%) 18 | . . 22 22 Protection 18 | . . 22 22 Peak Build Rating 3 | . 2 2 3 Average Rating 1 | . . 2 2 On Entrance 1 | . . 2 2 Naked Turns 32 | . 32 . . Heaviest Build 3 | . 2 2 3 Greatest Support 3 | 3 3 3 3 Greatest Overweight (x) . | . . . . Average Overweight (x) . | . . . . Largest Inventory Capacity 5 | 5 5 5 5 Average Capacity 5 | 5 5 5 5 Most Carried . | . . . . Average Carried . | . . . . Final Capacity 5 | 5 5 5 5 Final Carried . | . . . . Class Distribution -------------------- 100% | Mutant Dominant Class ---------------- Mutant | -10/Materials Mutant | -9/Materials Mutant | -9/Storage Resources | -11 -10 -9 -9 ----------- Run | Yrd Mat Mat Sto Matter Collected . | . . . . Remotely . | . . . . Salvage Created . | . . . . Parts . | . . . . Haulers Intercepted . | . . . . Recyclers Shooed . | . . . . Parts Field Recycled . | . . . . Retrieved Matter . | . . . . Parts Self-Destructed . | . . . . Prevented . | . . . . Kills | -11 -10 -9 -9 ------- Run | Yrd Mat Mat Sto Combat Hostiles Destroyed . | . . . . Classes Destroyed . | . . . . Best Kill Streak . | . . . . Combat Bots Only . | . . . . Max Kills in Single Turn . | . . . . Gunslinging . | . . . . Exploded . | . . . . Melee . | . . . . Uniques/NPCs Destroyed . | . . . . Combat | -11 -10 -9 -9 -------- Run | Yrd Mat Mat Sto Hostile Shots Fired 65 | . 36 10 19 Missed 18 | . 12 . 6 Hits 47 | . 24 10 13 Projectile 47 | . 24 10 13 Critical Strikes 3 | . 1 . 2 Damage Taken 608 | . 189 242 177 Core 589 | . 189 242 158 Absorbed by Shields . | . . . . Core Remaining (%) 62 | 100 24 . . Volleys Fired . | . . . . Largest . | . . . . Hottest . | . . . . Shots Fired . | . . . . Gun . | . . . . Cannon . | . . . . Launcher . | . . . . Special . | . . . . Kinetic . | . . . . Thermal . | . . . . Explosive . | . . . . Electromagnetic . | . . . . Robot Hit Streak . | . . . . Robot Miss Streak . | . . . . Penetration Max . | . . . . Secondary Targets . | . . . . Shots Hit Robots . | . . . . Core Hits 2 | . . . 2 Critical Kills . | . . . . Critical Parts Destroyed . | . . . . Critical Strikes . | . . . . Melee Attacks . | . . . . Impact . | . . . . Slashing . | . . . . Piercing . | . . . . Sneak Attacks . | . . . . Combat Hostiles . | . . . . Follow-up Attacks . | . . . . Damage Inflicted 36 | . . 11 25 Guns . | . . . . Cannons . | . . . . Explosions . | . . . . Melee . | . . . . Ramming 36 | . . 11 25 Kinetic . | . . . . Thermal . | . . . . Explosive . | . . . . Electromagnetic . | . . . . Impact . | . . . . Slashing . | . . . . Piercing . | . . . . Highest Corruption 3 | . . 1 3 Average Corruption 2 | . . 1 2 Corruption Purged . | . . . . Corruption Blocked . | . . . . Effects 3 | . . . 3 Message Errors 1 | . . . 1 Matter Fused 2 | . . . 2 Overload Shots . | . . . . Overflow Damage . | . . . . Projectiles . | . . . . Explosions . | . . . . Melee . | . . . . Knockbacks . | . . . . Impact . | . . . . Kinetic . | . . . . Secondary . | . . . . Self-Inflicted Damage 16 | . . 5 11 Shots . | . . . . Rammed 7 | . . 1 6 Targets Rammed 7 | . . 1 6 Kicked . | . . . . Crushed . | . . . . Highest Temperature . | . . . . Average Temperature . | . . . . Received Heat Transfer 96 | . . 51 45 Siege Activations . | . . . . Martial Activations . | . . . . Shielding Activations . | . . . . Robots Disrupted . | . . . . Combat Hostiles . | . . . . Robots Corrupted . | . . . . Combat Hostiles . | . . . . Parts Fried . | . . . . Impact Corruptions . | . . . . Robots Melted . | . . . . Combat Hostiles . | . . . . Parts Melted . | . . . . Heat Transferred . | . . . . Parts Sabotaged . | . . . . Parts Stolen . | . . . . Parts Stripped . | . . . . Power Chain Reactions . | . . . . Alert | -11 -10 -9 -9 ------- Run | Yrd Mat Mat Sto Maximum Alert Level . | . . . . Low Security (%) 100 | 100 100 100 100 Level 1 . | . . . . Level 2 . | . . . . Level 3 . | . . . . Level 4 . | . . . . Level 5 . | . . . . High Security . | . . . . Max Security . | . . . . Peak Influence 55 | . . . 55 Initial . | . . . . Average 12 | . . . 23 Influence Increases 75 | . . . 75 Lose Combat Pursuer 75 | . . . 75 Influence Decreases 50 | . . . 50 Time Decay 40 | . . . 40 Lost Part 10 | . . . 10 Squads Dispatched 2 | . 1 1 . Investigation . | . . . . Extermination . | . . . . Reinforcement 2 | . 1 1 . Assault . | . . . . Garrison . | . . . . Intercept . | . . . . Searches Triggered . | . . . . Construction Impeded . | . . . . Haulers Reinforced . | . . . . Active Scanning Responses . | . . . . Cargo Convoy Interrupts . | . . . . Stealth | -11 -10 -9 -9 --------- Run | Yrd Mat Mat Sto Distress Signals 1 | . . 1 . Communications Jammed . | . . . . Distress Signals . | . . . . Times Spotted 37 | . 12 10 15 Peak Tracking Total 12 | . 12 6 9 Tactical Retreats 3 | . . . 3 Traps | -11 -10 -9 -9 ------- Run | Yrd Mat Mat Sto Traps Triggered 5 | . . 2 3 Indirectly . | . . . . Trap Hack Attempts . | . . . . Triggered . | . . . . Disarmed . | . . . . Reprogrammed . | . . . . Reused . | . . . . Traps Extracted . | . . . . Installed . | . . . . Triggered . | . . . . Machines | -11 -10 -9 -9 ---------- Run | Yrd Mat Mat Sto Machines Disabled . | . . . . Max in Single Turn . | . . . . Machines Repaired . | . . . . Machines Dismantled . | . . . . Machines Sabotaged . | . . . . Overloaded Fab Kills . | . . . . Hacking | -11 -10 -9 -9 --------- Run | Yrd Mat Mat Sto Machines Accessed 1 | . . . 1 Terminals 1 | . . . 1 Fabricators . | . . . . Repair Stations . | . . . . Recycling Units . | . . . . Scanalyzers . | . . . . Garrison Access . | . . . . Total Hacks 2 | . . . 2 Successful . | . . . . Failed 2 | . . . 2 Catastrophic 1 | . . . 1 Database Lockouts . | . . . . Manual . | . . . . Terminals 2 | . . . 2 Fabricators . | . . . . Repair Stations . | . . . . Recycling Units . | . . . . Scanalyzers . | . . . . Garrison Access . | . . . . Terminal Hacks . | . . . . Fabricator Hacks . | . . . . Repair Station Hacks . | . . . . Recycling Unit Hacks . | . . . . Scanalyzer . | . . . . Garrison Access Hacks . | . . . . Unauthorized Hacks . | . . . . Terminals . | . . . . Fabricators . | . . . . Repair Stations . | . . . . Recycling Units . | . . . . Scanalyzers . | . . . . Garrison Access . | . . . . Data Cores Recovered . | . . . . Used . | . . . . Hacking Detections 1 | . . . 1 Full Trace Events 1 | . . . 1 Feedback Events . | . . . . Feedback Blocked . | . . . . Robot Schematics Acquired . | . . . . Robots Built . | . . . . Authchips . | . . . . Time . | . . . . Total Robot Build Rating . | . . . . Part Schematics Acquired . | . . . . Parts Built . | . . . . Authchips . | . . . . Time . | . . . . Total Part Build Rating . | . . . . Parts Repaired . | . . . . Time . | . . . . Parts Recycled . | . . . . Recycled Matter . | . . . . Retrieved Matter . | . . . . Retrieved Components . | . . . . Parts Scanalyzed . | . . . . Part Schematics Acquired . | . . . . Parts Damaged . | . . . . Bothacking | -11 -10 -9 -9 ------------ Run | Yrd Mat Mat Sto Used RIF Installer . | . . . . Robots Hacked . | . . . . Non-combat . | . . . . Combat . | . . . . Robot Hacks Applied . | . . . . Relay Couplers Released . | . . . . Fabnet Peak Effective % . | . . . . Robots Rewired . | . . . . Allies Hacked . | . . . . Hacks Repelled . | . . . . Allies | -11 -10 -9 -9 -------- Run | Yrd Mat Mat Sto Total Allies . | . . . . Largest Group . | . . . . Highest-Rated Group . | . . . . Highest-Rated Ally . | . . . . Total Orders . | . . . . Ally Attacks . | . . . . Total Damage . | . . . . Kills . | . . . . Allies Corrupted . | . . . . Allies Melted . | . . . . Intel | -11 -10 -9 -9 ------- Run | Yrd Mat Mat Sto Active Infowar (turns) . | . . . . Robot Analysis Total . | . . . . Derelict Logs Recovered . | . . . . Drone Launches . | . . . . Drone Recoveries . | . . . . Exploration | -11 -10 -9 -9 ------------- Run | Yrd Mat Mat Sto Turns Passed 265 | 9 38 77 141 Spaces Moved 504 | 18 69 151 266 Core 504 | 18 69 151 266 Treads . | . . . . Legs . | . . . . Wheels . | . . . . Hover . | . . . . Flight . | . . . . Fastest Speed 50 | 50 50 50 50 Average Speed 50 | 50 50 50 50 Slowest Speed 50 | 50 50 50 50 Overloaded Moves . | . . . . Propulsion Burnouts . | . . . . Robots Hopped . | . . . . Potential Cave-ins . | . . . . Cave-ins Triggered . | . . . . Exploration Rate (%) 23 | 2 23 24 45 Regions Visited 3 Branch Regions 1 Pre-discovered Areas . | . . . . Known Exits Taken . | . . . . Unknown Exits Taken 3 | 1 1 1 . Scrap Searched . | . . . . Spaces Dug . | . . . . Terrain Destroyed . | . . . . Melee . | . . . . Projectile . | . . . . AOE . | . . . . Terrain Rammed . | . . . . Walls Destroyed . | . . . . Machines Disabled . | . . . . Actions | -11 -10 -9 -9 --------- Run | Yrd Mat Mat Sto Total 512 | 17 70 151 274 Wait . | . . . . Move 501 | 17 68 150 266 Hop . | . . . . Pick Up . | . . . . Fast Attach 4 | . 2 . 2 Attach . | . . . . Detach . | . . . . Swap . | . . . . Drop . | . . . . Fire . | . . . . Melee . | . . . . Ram 7 | . . 1 6 Kick . | . . . . Crush . | . . . . Escape Stasis . | . . . . Rewire . | . . . . Trap . | . . . . Miscellaneous . | . . . . Route ------- -11/Scrapyard -10/Materials -9/Materials (discovered 2 exits: [*Min] / *Sto) -9/Storage History --------- Turn | Location | Event 4 | -11/Scrapyard | Discovered new exit (range 13) 10 | -11/Scrapyard | Entered Materials 36 | -10/Materials | Discovered new exit (range 14) 45 | -10/Materials | Core integrity fell below 50% 48 | -10/Materials | Entered another Materials area 48 | -9/Materials | Evolved 2 slots: Power x2 92 | -9/Materials | Discovered new exit (range 14) 120 | -9/Materials | Discovered new exit (range 10) 123 | -9/Materials | Core integrity fell below 50% 125 | -9/Materials | Entered Storage 248 | -9/Storage | Core integrity fell below 20% 266 | -9/Storage | Destroyed by S-10 Pest with Light Assault Rifle Last Messages --------------- 00162_ G-34 Mercenary unfolds itself. 00176_ Slammed into A-02 Transporter. 00176_ Destabilizing: System corrupted (+2). 00184_ System corrupted: Matter fused (-10). 00201_ Slammed into R-06 Scavenger. 00206_ ORF|77KK,NIN|E4P1 AD%FYBN1QL 00206_ K-01 Serf collects debris. 00227_ Triggered Blade Trap. 00227_ Massive razor-sharp blades shoot up from within the floor. 00229_ U-05 Engineer lays Concrete. 00238_ Slammed into W-16 Scout. 00238_ K-01 Serf collects debris. 00241_ Acquired Datajack. 00241_ K-01 Serf collects debris. 00246_ Critical hit (Burn: +37). 00246_ Datajack destroyed. 00252_ Slammed into U-05 Engineer. 00255_ Slammed into A-02 Transporter. 00266_ Acquired Lgt. Ion Engine. Map ----- +----------------------------------------------------+ | ????????????????????????????????????????? | | ????????????????????????????????????????? | | ????????????????????????????????????????? | | ????????????????????????????????????????? | | ????????????????????????????????????????? | | ????????????????????????????????????????? | | ????????????????????????????????????????? | | ????????????????????????????????????????? | | ????????????????????????????????????????? | | ????????????????????????????????????????? | | ????????????????????????????????????????? | | ????????????????????????????????????????? | | ????????????????????????????????????????? | | ????????????????????????????????????????? | | ????????????????????????????????????????? | | ????????????????????????????????????????? | | ????????????????????????????????????????? | | ????????????????????????????????????????? | | ????????????????????????????????????????? | | ????????????????????????????????????????? | | ????????????????????????????????????????? | | ????????????????????????????????????????? | | ???????????????????????##########???????? | | ???????????????????????# #???????? | | ???????????????????????# """#???????? | | ???????????????????????# @ """#???????? | | ?????????+ ??????????# """#???????? | | ?????????# ??????????# #???????? | | ?????????# ###########s###+##### #??? | | ?????????# # ##s #??? | | ?????????# # """" ##s #??? | | ?????????# # ""??" / #??? | | ?????????# # ""???" ############ #??? | | ?????????# # "????" #??????????????#??? | | ?????????# # "???" #?????????????????? | | ?????????# # """" #?????????????????? | | ?????????+ # #?????????????????? | | ?????????# #####+#####????????????????? | | ?????????# #????????????????? | | ?????????# +????????????????? | | ?????????# #????????????????? | | ?????????# #####+#####????????????????? | | ?????????# #??# #?????????????????? | | ?????????# #??# #?????????????????? | | ?????????# #??# #?????????????????? | | ?????????# #??# #?????????????????? | | ?????????# #??#! #?????????????????? | | ########## #### ] #?????????????????? | | + #?????????????????? | | #### #?????????????????? | +----------------------------------------------------+ Best States ------------- Heat Dissipation 28 Energy Generation 5 Energy Capacity 100 Matter Stores 100 Matter Capacity 300 Sight Range 16 Terrain Scan Density 10 Power Shielding 33 Evasion (%) 50 Item Schematics ----------------- None Robot Schematics ------------------ None Fabricated ------------ Nothing Repaired ---------- Nothing Alien Tech Used ----------------- None Achievements -------------- None Challenges ------------ None Game ------ Seed EncryptedBlanketLance Manual? 0 Play Time 00:03:36 Cumulative 26.2 hours Start 2025.10.11 @ 18:17:27 End 2025.10.11 @ 18:19:47 Sessions 1 Manual Loads 0 Difficulty Rogue Special Mode None Game No. 95 Rogue 95 Adventurer 0 Explorer 0 Win Type - Total 0 Types 0/0/0/0/0/0/0/0/0/0 Lore% 10 Gallery% 28 Achievement% 26 Wizard Run 0 Options --------- Layout 1 ASCII 0 Keyboard 1 Movement Vi Keybinds 0 Fullscreen 1 Font 16/SmallcapsGlow Map View 55x38 Zoom Use 0% Tactical HUD 1 Map Filters NONE Filters NONE Steam 1 RUN: 1c7a9976-067b-4755-9550-ffd2817b67f9